[Event "Titled Tuesday Blitz November 15 Early 2022"]
[White "Kowalczyk, Pawel"]
[Black "Vasques, Antonio Pedro Freixial"]
[WhiteFideId "1130641"]
[BlackFideId "1908332"]
[WhiteElo "2324"]
[BlackElo "2243"]
[Result "1-0"]
[Round "01"]
[TimeControl "180+1"]
[Date "2022.11.16"]
[WhiteClock "0:01:43"]
[BlackClock "0:00:01"]

1. e4 {[%clk 0:03:00]}  c5 {[%clk 0:02:57]} 2. Nf3 {[%clk 0:03:00]}  Nc6 {[%clk 0:02:57]} 3. d4 {[%clk 0:03:00]}  cxd4 {[%clk 0:02:58]} 4. Nxd4 {[%clk 0:03:01]}  e5 {[%clk 0:02:58]} 5. Nb5 {[%clk 0:03:01]}  d6 {[%clk 0:02:59]} 6. c4 {[%clk 0:02:59]}  Be7 {[%clk 0:02:58]} 7. N1c3 {[%clk 0:02:59]}  a6 {[%clk 0:02:58]} 8. Na3 {[%clk 0:02:59]}  f5 {[%clk 0:02:59]} 9. Bd3 {[%clk 0:02:57]}  f4 {[%clk 0:02:46]} 10. g3 {[%clk 0:02:56]}  fxg3 {[%clk 0:02:43]} 11. hxg3 {[%clk 0:02:57]}  Nf6 {[%clk 0:02:42]} 12. Nc2 {[%clk 0:02:52]}  O-O {[%clk 0:02:25]} 13. Nd5 {[%clk 0:02:52]}  Be6 {[%clk 0:01:40]} 14. Bd2 {[%clk 0:02:47]}  Rc8 {[%clk 0:01:36]} 15. Qe2 {[%clk 0:02:46]}  b5 {[%clk 0:01:11]} 16. cxb5 {[%clk 0:02:37]}  axb5 {[%clk 0:01:10]} 17. Nxf6+ {[%clk 0:02:31]}  Bxf6 {[%clk 0:01:07]} 18. Bxb5 {[%clk 0:02:31]}  d5 {[%clk 0:00:17]} 19. a4 {[%clk 0:02:25]}  dxe4 {[%clk 0:00:17]} 20. Bc4 {[%clk 0:02:20]}  Qe8 {[%clk 0:00:11]} 21. Qxe4 {[%clk 0:02:17]}  g6 {[%clk 0:00:10]} 22. a5 {[%clk 0:02:12]}  Nd4 {[%clk 0:00:08]} 23. Bxe6+ {[%clk 0:02:10]}  Nxe6 {[%clk 0:00:08]} 24. Bc3 {[%clk 0:02:08]}  Qb5 {[%clk 0:00:07]} 25. Qe2 {[%clk 0:01:59]}  Qb3 {[%clk 0:00:06]} 26. O-O {[%clk 0:01:55]}  Nd4 {[%clk 0:00:02]} 27. Nxd4 {[%clk 0:01:49]}  exd4 {[%clk 0:00:03]} 28. Ra3 {[%clk 0:01:46]}  Qd5 {[%clk 0:00:01]} 29. Bd2 {[%clk 0:01:43]} 1-0


[Site "https://www.chess.com"]

[Event "Titled Tuesday Blitz November 15 Early 2022"]
[White "Kozak, Adam"]
[Black "Korelskiy, Egor"]
[WhiteFideId "753246"]
[BlackFideId "34329064"]
[WhiteElo "2459"]
[BlackElo "2043"]
[Result "1-0"]
[Round "01"]
[TimeControl "180+1"]
[Date "2022.11.15"]
[WhiteClock "0:00:14"]
[BlackClock "0:00:03"]

1. e4 {[%clk 0:02:55]}  c5 {[%clk 0:02:59]} 2. c3 {[%clk 0:02:49]}  e6 {[%clk 0:02:59]} 3. Nf3 {[%clk 0:02:46]}  d5 {[%clk 0:02:59]} 4. exd5 {[%clk 0:02:46]}  exd5 {[%clk 0:03:00]} 5. d4 {[%clk 0:02:46]}  Nf6 {[%clk 0:03:00]} 6. Bd3 {[%clk 0:02:44]}  Nc6 {[%clk 0:03:00]} 7. dxc5 {[%clk 0:02:43]}  Bxc5 {[%clk 0:03:00]} 8. O-O {[%clk 0:02:43]}  Be6 {[%clk 0:02:59]} 9. Nbd2 {[%clk 0:02:38]}  O-O {[%clk 0:02:59]} 10. Nb3 {[%clk 0:02:38]}  Be7 {[%clk 0:02:58]} 11. Bc2 {[%clk 0:02:33]}  h6 {[%clk 0:02:58]} 12. Nfd4 {[%clk 0:02:33]}  Qd7 {[%clk 0:02:54]} 13. Nxe6 {[%clk 0:02:29]}  fxe6 {[%clk 0:02:52]} 14. Qe2 {[%clk 0:02:29]}  e5 {[%clk 0:02:49]} 15. Be3 {[%clk 0:02:28]}  Rae8 {[%clk 0:02:47]} 16. Rad1 {[%clk 0:02:27]}  Bd6 {[%clk 0:02:44]} 17. Bc5 {[%clk 0:02:25]}  Bxc5 {[%clk 0:02:25]} 18. Nxc5 {[%clk 0:02:26]}  Qe7 {[%clk 0:02:25]} 19. b4 {[%clk 0:02:20]}  Kh8 {[%clk 0:02:22]} 20. Bb3 {[%clk 0:02:10]}  Rd8 {[%clk 0:02:09]} 21. h3 {[%clk 0:02:09]}  b6 {[%clk 0:02:04]} 22. Nd3 {[%clk 0:02:06]}  Ne4 {[%clk 0:01:59]} 23. Rc1 {[%clk 0:01:56]}  Qd6 {[%clk 0:01:30]} 24. Rfe1 {[%clk 0:01:53]}  Rfe8 {[%clk 0:01:15]} 25. f3 {[%clk 0:01:24]}  Nf6 {[%clk 0:01:13]} 26. b5 {[%clk 0:01:24]}  e4 {[%clk 0:00:44]} 27. bxc6 {[%clk 0:01:19]}  exd3 {[%clk 0:00:43]} 28. Qxd3 {[%clk 0:01:20]}  Qxc6 {[%clk 0:00:44]} 29. Qd4 {[%clk 0:01:17]}  Qc5 {[%clk 0:00:34]} 30. Kf2 {[%clk 0:01:11]}  Qd6 {[%clk 0:00:32]} 31. Rcd1 {[%clk 0:01:09]}  Rxe1 {[%clk 0:00:20]} 32. Rxe1 {[%clk 0:01:08]}  Nh5 {[%clk 0:00:20]} 33. Qh4 {[%clk 0:00:57]}  Nf6 {[%clk 0:00:19]} 34. Re3 {[%clk 0:00:55]}  Qc5 {[%clk 0:00:18]} 35. Qd4 {[%clk 0:00:55]}  Qd6 {[%clk 0:00:18]} 36. Re5 {[%clk 0:00:48]}  Qd7 {[%clk 0:00:15]} 37. g4 {[%clk 0:00:47]}  Qd6 {[%clk 0:00:09]} 38. Kg2 {[%clk 0:00:47]}  Qd7 {[%clk 0:00:09]} 39. h4 {[%clk 0:00:47]}  Qc7 {[%clk 0:00:06]} 40. Bc2 {[%clk 0:00:34]}  Qc5 {[%clk 0:00:05]} 41. g5 {[%clk 0:00:34]}  Qxd4 {[%clk 0:00:04]} 42. cxd4 {[%clk 0:00:34]}  hxg5 {[%clk 0:00:05]} 43. hxg5 {[%clk 0:00:35]}  Nh5 {[%clk 0:00:05]} 44. Bb3 {[%clk 0:00:32]}  g6 {[%clk 0:00:04]} 45. Kf2 {[%clk 0:00:29]}  Nf4 {[%clk 0:00:04]} 46. Kg3 {[%clk 0:00:28]}  Nh5+ {[%clk 0:00:03]} 47. Kg4 {[%clk 0:00:27]}  Rf8 {[%clk 0:00:04]} 48. Bxd5 {[%clk 0:00:26]}  Rf4+ {[%clk 0:00:04]} 49. Kh3 {[%clk 0:00:26]}  Rxd4 {[%clk 0:00:05]} 50. Be4 {[%clk 0:00:23]}  Rd2 {[%clk 0:00:05]} 51. Re8+ {[%clk 0:00:19]}  Kg7 {[%clk 0:00:05]} 52. Re7+ {[%clk 0:00:20]}  Kf8 {[%clk 0:00:05]} 53. Rxa7 {[%clk 0:00:21]}  Rb2 {[%clk 0:00:04]} 54. a4 {[%clk 0:00:16]}  Rb1 {[%clk 0:00:03]} 55. Kg2 {[%clk 0:00:16]}  Rb2+ {[%clk 0:00:02]} 56. Kh3 {[%clk 0:00:17]}  Rd2 {[%clk 0:00:02]} 57. Rc7 {[%clk 0:00:15]}  Ra2 {[%clk 0:00:02]} 58. Rc6 {[%clk 0:00:15]}  Rxa4 {[%clk 0:00:01]} 59. Bxg6 {[%clk 0:00:13]}  Nf4+ {[%clk 0:00:01]} 60. Kg3 {[%clk 0:00:13]}  Ne2+ {[%clk 0:00:01]} 61. Kf2 {[%clk 0:00:13]}  Nd4 {[%clk 0:00:01]} 62. Rxb6 {[%clk 0:00:12]}  Ra2+ {[%clk 0:00:01]} 63. Kg3 {[%clk 0:00:12]}  Ra3 {[%clk 0:00:02]} 64. Be4 {[%clk 0:00:12]}  Kg7 {[%clk 0:00:02]} 65. Kg4 {[%clk 0:00:12]}  Ne2 {[%clk 0:00:02]} 66. Rb7+ {[%clk 0:00:12]}  Kg8 {[%clk 0:00:01]} 67. g6 {[%clk 0:00:13]}  Ra1 {[%clk 0:00:02]} 68. Bd5+ {[%clk 0:00:13]}  Kf8 {[%clk 0:00:02]} 69. g7+ {[%clk 0:00:13]}  Ke8 {[%clk 0:00:03]} 70. g8=Q# {[%clk 0:00:14]} 1-0


[Site "https://www.chess.com"]

[Event "Titled Tuesday Blitz November 15 Early 2022"]
[White "Kozak, Antoni"]
[Black "Szente Varga, Fruzsina"]
[WhiteFideId "21832030"]
[BlackFideId "712264"]
[WhiteElo "2447"]
[BlackElo "1994"]
[Result "1-0"]
[Round "01"]
[TimeControl "180+1"]
[Date "2022.11.16"]
[WhiteClock "0:00:14"]
[BlackClock "0:00:04"]

1. d4 {[%clk 0:02:57]}  Nf6 {[%clk 0:02:57]} 2. Bf4 {[%clk 0:02:56]}  d5 {[%clk 0:02:57]} 3. c3 {[%clk 0:02:55]}  g6 {[%clk 0:02:57]} 4. e3 {[%clk 0:02:50]}  Bg7 {[%clk 0:02:57]} 5. h3 {[%clk 0:02:49]}  O-O {[%clk 0:02:56]} 6. Nf3 {[%clk 0:02:48]}  c6 {[%clk 0:02:56]} 7. Bd3 {[%clk 0:02:47]}  Ne4 {[%clk 0:02:56]} 8. Nbd2 {[%clk 0:02:42]}  f5 {[%clk 0:02:53]} 9. Qe2 {[%clk 0:02:18]}  Nd7 {[%clk 0:02:45]} 10. g4 {[%clk 0:02:16]}  Ndf6 {[%clk 0:02:43]} 11. gxf5 {[%clk 0:01:53]}  Bxf5 {[%clk 0:02:42]} 12. O-O-O {[%clk 0:01:45]}  b5 {[%clk 0:02:34]} 13. Ne5 {[%clk 0:01:43]}  Qb6 {[%clk 0:02:25]} 14. Nb3 {[%clk 0:01:30]}  a5 {[%clk 0:02:00]} 15. f3 {[%clk 0:01:30]}  a4 {[%clk 0:01:50]} 16. fxe4 {[%clk 0:01:14]}  dxe4 {[%clk 0:01:42]} 17. Bc2 {[%clk 0:01:14]}  axb3 {[%clk 0:01:41]} 18. Bxb3+ {[%clk 0:01:14]}  e6 {[%clk 0:01:29]} 19. h4 {[%clk 0:01:12]}  h5 {[%clk 0:01:25]} 20. Rhg1 {[%clk 0:01:07]}  Kh7 {[%clk 0:01:26]} 21. Qg2 {[%clk 0:00:57]}  Ng4 {[%clk 0:00:50]} 22. Nxg4 {[%clk 0:00:56]}  Bxg4 {[%clk 0:00:49]} 23. Bxe6 {[%clk 0:00:53]}  c5 {[%clk 0:00:30]} 24. Bxg4 {[%clk 0:00:52]}  hxg4 {[%clk 0:00:23]} 25. dxc5 {[%clk 0:00:46]}  Qxc5 {[%clk 0:00:24]} 26. Qxg4 {[%clk 0:00:44]}  Ra6 {[%clk 0:00:24]} 27. h5 {[%clk 0:00:28]}  Bxc3 {[%clk 0:00:24]} 28. hxg6+ {[%clk 0:00:25]}  Kg8 {[%clk 0:00:22]} 29. Kb1 {[%clk 0:00:21]}  Bxb2 {[%clk 0:00:17]} 30. Qd7 {[%clk 0:00:16]}  Bg7 {[%clk 0:00:13]} 31. Qd5+ {[%clk 0:00:16]}  Qxd5 {[%clk 0:00:13]} 32. Rxd5 {[%clk 0:00:17]}  Rfa8 {[%clk 0:00:11]} 33. Rxb5 {[%clk 0:00:14]}  Rxa2 {[%clk 0:00:11]} 34. Rb8+ {[%clk 0:00:15]}  Rxb8+ {[%clk 0:00:11]} 35. Kxa2 {[%clk 0:00:16]}  Rb2+ {[%clk 0:00:11]} 36. Ka3 {[%clk 0:00:16]}  Rd2 {[%clk 0:00:10]} 37. Kb3 {[%clk 0:00:14]}  Rd3+ {[%clk 0:00:11]} 38. Kc4 {[%clk 0:00:15]}  Kf8 {[%clk 0:00:11]} 39. Rg4 {[%clk 0:00:15]}  Rd1 {[%clk 0:00:07]} 40. Bg5 {[%clk 0:00:15]}  Rd6 {[%clk 0:00:06]} 41. Bf4 {[%clk 0:00:10]}  Re6 {[%clk 0:00:06]} 42. Kd5 {[%clk 0:00:10]}  Re8 {[%clk 0:00:04]} 43. Bd6+ {[%clk 0:00:11]}  Kg8 {[%clk 0:00:04]} 44. Rxe4 {[%clk 0:00:12]}  Rxe4 {[%clk 0:00:02]} 45. Kxe4 {[%clk 0:00:12]}  Bf6 {[%clk 0:00:02]} 46. Kf5 {[%clk 0:00:12]}  Kg7 {[%clk 0:00:02]} 47. Be5 {[%clk 0:00:12]}  Bxe5 {[%clk 0:00:03]} 48. Kxe5 {[%clk 0:00:13]}  Kxg6 {[%clk 0:00:04]} 49. e4 {[%clk 0:00:12]}  Kf7 {[%clk 0:00:04]} 50. Kd6 {[%clk 0:00:13]}  Kf8 {[%clk 0:00:04]} 51. Kd7 {[%clk 0:00:13]}  Kf7 {[%clk 0:00:04]} 52. e5 {[%clk 0:00:14]} 1-0


[Site "https://www.chess.com"]

[Event "Titled Tuesday Blitz November 15 Early 2022"]
[White "Krzyzanowski, Marcin"]
[Black "Gedgafov, Chamal"]
[WhiteFideId "1132199"]
[BlackFideId "34130621"]
[WhiteElo "2435"]
[BlackElo "2067"]
[Result "1-0"]
[Round "01"]
[TimeControl "180+1"]
[Date "2022.11.16"]
[WhiteClock "0:01:23"]
[BlackClock "0:01:51"]

1. e4 {[%clk 0:03:00]}  e6 {[%clk 0:02:59]} 2. d3 {[%clk 0:03:00]}  d5 {[%clk 0:02:59]} 3. Nd2 {[%clk 0:02:57]}  dxe4 {[%clk 0:02:59]} 4. dxe4 {[%clk 0:02:55]}  e5 {[%clk 0:02:59]} 5. Ngf3 {[%clk 0:02:55]}  Nc6 {[%clk 0:03:00]} 6. Bc4 {[%clk 0:02:52]}  Be7 {[%clk 0:03:00]} 7. O-O {[%clk 0:02:50]}  Nf6 {[%clk 0:03:00]} 8. c3 {[%clk 0:02:49]}  O-O {[%clk 0:03:00]} 9. Qe2 {[%clk 0:02:49]}  Bg4 {[%clk 0:03:00]} 10. h3 {[%clk 0:02:49]}  Bh5 {[%clk 0:03:00]} 11. Rd1 {[%clk 0:02:50]}  Bd6 {[%clk 0:02:59]} 12. Nf1 {[%clk 0:02:50]}  h6 {[%clk 0:02:57]} 13. Ng3 {[%clk 0:02:50]}  Bg6 {[%clk 0:02:56]} 14. Nh4 {[%clk 0:02:51]}  Bh7 {[%clk 0:02:55]} 15. Nhf5 {[%clk 0:02:51]}  Ne7 {[%clk 0:02:45]} 16. Qf3 {[%clk 0:02:46]}  Nxf5 {[%clk 0:02:44]} 17. Nxf5 {[%clk 0:02:47]}  Bxf5 {[%clk 0:02:45]} 18. Qxf5 {[%clk 0:02:48]}  Qc8 {[%clk 0:02:45]} 19. Qf3 {[%clk 0:02:48]}  Kh7 {[%clk 0:02:43]} 20. b4 {[%clk 0:02:45]}  a6 {[%clk 0:02:42]} 21. a4 {[%clk 0:02:45]}  Qe8 {[%clk 0:02:42]} 22. Be3 {[%clk 0:02:43]}  Qe7 {[%clk 0:02:42]} 23. g4 {[%clk 0:02:38]}  a5 {[%clk 0:02:36]} 24. b5 {[%clk 0:02:34]}  Bc5 {[%clk 0:02:36]} 25. g5 {[%clk 0:02:33]}  Ng8 {[%clk 0:02:30]} 26. gxh6 {[%clk 0:02:26]}  Bxe3 {[%clk 0:02:29]} 27. hxg7 {[%clk 0:02:19]}  Qg5+ {[%clk 0:02:22]} 28. Kh1 {[%clk 0:02:19]}  Rfd8 {[%clk 0:02:21]} 29. fxe3 {[%clk 0:02:16]}  Rxd1+ {[%clk 0:02:14]} 30. Rxd1 {[%clk 0:02:17]}  Rd8 {[%clk 0:02:14]} 31. Rg1 {[%clk 0:02:06]}  Qf6 {[%clk 0:02:09]} 32. Qxf6 {[%clk 0:02:06]}  Nxf6 {[%clk 0:02:09]} 33. Bxf7 {[%clk 0:02:07]}  Ng8 {[%clk 0:02:07]} 34. Bd5 {[%clk 0:02:07]}  c6 {[%clk 0:02:05]} 35. bxc6 {[%clk 0:02:06]}  bxc6 {[%clk 0:02:05]} 36. Bxc6 {[%clk 0:02:07]}  Rc8 {[%clk 0:02:06]} 37. Bd7 {[%clk 0:02:01]}  Rxc3 {[%clk 0:02:01]} 38. Bf5+ {[%clk 0:02:02]}  Kh6 {[%clk 0:02:01]} 39. Be6 {[%clk 0:01:40]}  Kh7 {[%clk 0:01:59]} 40. Rg4 {[%clk 0:01:35]}  Rc7 {[%clk 0:01:57]} 41. Rh4+ {[%clk 0:01:33]}  Kg6 {[%clk 0:01:55]} 42. Bxg8 {[%clk 0:01:25]}  Kxg7 {[%clk 0:01:52]} 43. Rh7+ {[%clk 0:01:22]}  Kf6 {[%clk 0:01:51]} 44. Rxc7 {[%clk 0:01:23]} 1-0


[Site "https://www.chess.com"]

[Event "Titled Tuesday Blitz November 15 Early 2022"]
[White "Kula, Robert"]
[Black "Averjanov, Alexey"]
[WhiteFideId "1101218"]
[BlackFideId "14109867"]
[WhiteElo "2184"]
[BlackElo "2626"]
[Result "1/2-1/2"]
[Round "01"]
[TimeControl "180+1"]
[Date "2022.11.16"]
[WhiteClock "0:01:28"]
[BlackClock "0:02:33"]

1. d4 {[%clk 0:02:58]}  d5 {[%clk 0:02:58]} 2. c4 {[%clk 0:02:58]}  dxc4 {[%clk 0:02:57]} 3. e3 {[%clk 0:02:57]}  Nf6 {[%clk 0:02:57]} 4. Bxc4 {[%clk 0:02:58]}  e6 {[%clk 0:02:58]} 5. Nc3 {[%clk 0:02:58]}  a6 {[%clk 0:02:58]} 6. Nf3 {[%clk 0:02:59]}  b5 {[%clk 0:02:58]} 7. Bb3 {[%clk 0:02:58]}  Bb7 {[%clk 0:02:58]} 8. O-O {[%clk 0:02:59]}  Nbd7 {[%clk 0:02:58]} 9. Qe2 {[%clk 0:02:55]}  c5 {[%clk 0:02:57]} 10. Rd1 {[%clk 0:02:54]}  Qc7 {[%clk 0:02:57]} 11. dxc5 {[%clk 0:02:41]}  Bxc5 {[%clk 0:02:57]} 12. Bd2 {[%clk 0:02:34]}  O-O {[%clk 0:02:56]} 13. Rac1 {[%clk 0:02:35]}  Qb6 {[%clk 0:02:56]} 14. a3 {[%clk 0:02:31]}  Rac8 {[%clk 0:02:56]} 15. h3 {[%clk 0:02:24]}  Rfd8 {[%clk 0:02:55]} 16. Be1 {[%clk 0:02:20]}  h6 {[%clk 0:02:54]} 17. Nd4 {[%clk 0:02:00]}  Be7 {[%clk 0:02:52]} 18. f3 {[%clk 0:01:55]}  Ne5 {[%clk 0:02:50]} 19. Bf2 {[%clk 0:01:55]}  Nc4 {[%clk 0:02:50]} 20. e4 {[%clk 0:01:48]}  Bc5 {[%clk 0:02:48]} 21. Bxc4 {[%clk 0:01:47]}  bxc4 {[%clk 0:02:48]} 22. Nc2 {[%clk 0:01:34]}  Rd3 {[%clk 0:02:43]} 23. Nb4 {[%clk 0:01:31]}  Bxf2+ {[%clk 0:02:35]} 24. Qxf2 {[%clk 0:01:31]}  Qxf2+ {[%clk 0:02:34]} 25. Kxf2 {[%clk 0:01:31]}  Rdd8 {[%clk 0:02:34]} 26. Rxd8+ {[%clk 0:01:27]}  Rxd8 {[%clk 0:02:33]} 27. Rd1 {[%clk 0:01:28]} 1/2-1/2


[Site "https://www.chess.com"]

[Event "Titled Tuesday Blitz November 15 Early 2022"]
[White "Le, Tuan Minh"]
[Black "Dzierzak, Radoslaw"]
[WhiteFideId "12401153"]
[BlackFideId "1161407"]
[WhiteElo "2530"]
[BlackElo "2111"]
[Result "1-0"]
[Round "01"]
[TimeControl "180+1"]
[Date "2022.11.15"]
[WhiteClock "0:00:35"]
[BlackClock "0:00:02"]

1. d4 {[%clk 0:03:00]}  Nf6 {[%clk 0:02:58]} 2. Nf3 {[%clk 0:03:00]}  e6 {[%clk 0:02:57]} 3. Bf4 {[%clk 0:02:59]}  b6 {[%clk 0:02:54]} 4. e3 {[%clk 0:02:59]}  Bb7 {[%clk 0:02:55]} 5. Bd3 {[%clk 0:02:58]}  c5 {[%clk 0:02:55]} 6. c3 {[%clk 0:02:57]}  cxd4 {[%clk 0:02:54]} 7. cxd4 {[%clk 0:02:57]}  Be7 {[%clk 0:02:55]} 8. Nc3 {[%clk 0:02:56]}  O-O {[%clk 0:02:55]} 9. O-O {[%clk 0:02:55]}  d6 {[%clk 0:02:54]} 10. h3 {[%clk 0:02:54]}  a6 {[%clk 0:02:53]} 11. a4 {[%clk 0:02:52]}  Nbd7 {[%clk 0:02:51]} 12. Qe2 {[%clk 0:02:51]}  Re8 {[%clk 0:02:51]} 13. Bh2 {[%clk 0:02:51]}  Nf8 {[%clk 0:02:48]} 14. Rac1 {[%clk 0:02:48]}  Ng6 {[%clk 0:02:44]} 15. Rc2 {[%clk 0:02:46]}  Bf8 {[%clk 0:02:37]} 16. Rfc1 {[%clk 0:02:45]}  Qd7 {[%clk 0:02:33]} 17. Nd2 {[%clk 0:02:11]}  e5 {[%clk 0:02:14]} 18. Qf1 {[%clk 0:01:54]}  exd4 {[%clk 0:02:06]} 19. exd4 {[%clk 0:01:55]}  Rec8 {[%clk 0:01:25]} 20. Nc4 {[%clk 0:01:51]}  Qd8 {[%clk 0:01:25]} 21. b3 {[%clk 0:01:41]}  Nd5 {[%clk 0:01:16]} 22. Nxd5 {[%clk 0:01:35]}  Bxd5 {[%clk 0:01:17]} 23. Bg3 {[%clk 0:01:23]}  b5 {[%clk 0:01:11]} 24. axb5 {[%clk 0:01:21]}  axb5 {[%clk 0:01:11]} 25. Ne3 {[%clk 0:01:21]}  Bxb3 {[%clk 0:01:05]} 26. Rxc8 {[%clk 0:01:19]}  Rxc8 {[%clk 0:01:05]} 27. Bxb5 {[%clk 0:01:20]}  Rxc1 {[%clk 0:01:02]} 28. Qxc1 {[%clk 0:01:20]}  Qb6 {[%clk 0:01:01]} 29. Bc4 {[%clk 0:01:17]}  Bxc4 {[%clk 0:00:37]} 30. Qxc4 {[%clk 0:01:18]}  h5 {[%clk 0:00:26]} 31. h4 {[%clk 0:01:14]}  Ne7 {[%clk 0:00:20]} 32. d5 {[%clk 0:01:10]}  g6 {[%clk 0:00:17]} 33. Kh2 {[%clk 0:01:05]}  Qc5 {[%clk 0:00:16]} 34. Qxc5 {[%clk 0:00:49]}  dxc5 {[%clk 0:00:17]} 35. d6 {[%clk 0:00:50]}  Nc6 {[%clk 0:00:17]} 36. Nd5 {[%clk 0:00:50]}  c4 {[%clk 0:00:06]} 37. d7 {[%clk 0:00:49]}  f5 {[%clk 0:00:04]} 38. Bc7 {[%clk 0:00:45]}  Kf7 {[%clk 0:00:03]} 39. d8=Q {[%clk 0:00:44]}  Nxd8 {[%clk 0:00:03]} 40. Bxd8 {[%clk 0:00:45]}  Ke6 {[%clk 0:00:04]} 41. Nf4+ {[%clk 0:00:42]}  Kd7 {[%clk 0:00:04]} 42. Bg5 {[%clk 0:00:42]}  Bd6 {[%clk 0:00:02]} 43. Kg1 {[%clk 0:00:41]}  c3 {[%clk 0:00:02]} 44. Nd3 {[%clk 0:00:34]}  Ke6 {[%clk 0:00:03]} 45. Kf1 {[%clk 0:00:34]}  Kd5 {[%clk 0:00:03]} 46. Ke2 {[%clk 0:00:34]}  Ke4 {[%clk 0:00:03]} 47. f3+ {[%clk 0:00:34]}  Kd4 {[%clk 0:00:03]} 48. Ne1 {[%clk 0:00:32]}  Kc4 {[%clk 0:00:03]} 49. Nc2 {[%clk 0:00:32]}  Bg3 {[%clk 0:00:03]} 50. Ne3+ {[%clk 0:00:31]}  Kb3 {[%clk 0:00:04]} 51. Kd3 {[%clk 0:00:32]}  Be1 {[%clk 0:00:03]} 52. Nc2 {[%clk 0:00:32]}  Bg3 {[%clk 0:00:03]} 53. Bf6 {[%clk 0:00:32]}  f4 {[%clk 0:00:02]} 54. Bxc3 {[%clk 0:00:32]}  Bxh4 {[%clk 0:00:02]} 55. Nd4+ {[%clk 0:00:32]}  Ka4 {[%clk 0:00:01]} 56. Ne6 {[%clk 0:00:33]}  g5 {[%clk 0:00:01]} 57. Bf6 {[%clk 0:00:34]}  g4 {[%clk 0:00:01]} 58. Bxh4 {[%clk 0:00:34]}  gxf3 {[%clk 0:00:01]} 59. gxf3 {[%clk 0:00:35]}  Kb5 {[%clk 0:00:02]} 60. Nxf4 {[%clk 0:00:35]} 1-0


[Site "https://www.chess.com"]

[Event "Titled Tuesday Blitz November 15 Early 2022"]
[White "Lohani, Sujana"]
[Black "Janaszak, Dawid"]
[WhiteFideId "12311987"]
[BlackFideId "1119206"]
[WhiteElo "1691"]
[BlackElo "2226"]
[Result "0-1"]
[Round "01"]
[TimeControl "180+1"]
[Date "2022.11.16"]
[WhiteClock "0:00:01"]
[BlackClock "0:01:41"]

1. d4 {[%clk 0:02:59]}  Nf6 {[%clk 0:02:59]} 2. Nf3 {[%clk 0:02:58]}  g6 {[%clk 0:02:59]} 3. c4 {[%clk 0:02:59]}  Bg7 {[%clk 0:02:55]} 4. g3 {[%clk 0:03:00]}  O-O {[%clk 0:02:54]} 5. Bg2 {[%clk 0:03:01]}  d6 {[%clk 0:02:54]} 6. O-O {[%clk 0:02:52]}  c5 {[%clk 0:02:54]} 7. d5 {[%clk 0:02:52]}  b5 {[%clk 0:02:52]} 8. cxb5 {[%clk 0:02:49]}  a6 {[%clk 0:02:52]} 9. bxa6 {[%clk 0:02:46]}  Bf5 {[%clk 0:02:52]} 10. Nc3 {[%clk 0:02:44]}  Qb6 {[%clk 0:02:50]} 11. Re1 {[%clk 0:02:29]}  Nxa6 {[%clk 0:02:48]} 12. e4 {[%clk 0:02:28]}  Bd7 {[%clk 0:02:46]} 13. e5 {[%clk 0:02:27]}  dxe5 {[%clk 0:02:45]} 14. Nxe5 {[%clk 0:02:27]}  Rad8 {[%clk 0:02:39]} 15. Nc4 {[%clk 0:01:59]}  Qa7 {[%clk 0:02:34]} 16. Rxe7 {[%clk 0:01:57]}  Rfe8 {[%clk 0:02:22]} 17. Rxe8+ {[%clk 0:01:39]}  Rxe8 {[%clk 0:02:23]} 18. Be3 {[%clk 0:01:25]}  Ng4 {[%clk 0:02:21]} 19. Bf4 {[%clk 0:01:09]}  Bd4 {[%clk 0:02:18]} 20. Ne3 {[%clk 0:00:29]}  Bxe3 {[%clk 0:02:11]} 21. fxe3 {[%clk 0:00:29]}  Nxe3 {[%clk 0:02:08]} 22. Qf3 {[%clk 0:00:20]}  c4 {[%clk 0:02:07]} 23. Kh1 {[%clk 0:00:19]}  Nf5 {[%clk 0:02:05]} 24. g4 {[%clk 0:00:17]}  Nh4 {[%clk 0:02:04]} 25. Qh3 {[%clk 0:00:16]}  Nxg2 {[%clk 0:02:04]} 26. Kxg2 {[%clk 0:00:14]}  Qd4 {[%clk 0:01:58]} 27. Qf3 {[%clk 0:00:13]}  Nb4 {[%clk 0:01:54]} 28. Rd1 {[%clk 0:00:12]}  Nd3 {[%clk 0:01:54]} 29. Bh6 {[%clk 0:00:10]}  Ne1+ {[%clk 0:01:49]} 30. Rxe1 {[%clk 0:00:09]}  Rxe1 {[%clk 0:01:50]} 31. Qg3 {[%clk 0:00:03]}  Rg1+ {[%clk 0:01:48]} 32. Kh3 {[%clk 0:00:02]}  Bxg4+ {[%clk 0:01:47]} 33. Kh4 {[%clk 0:00:01]}  Rxg3 {[%clk 0:01:44]} 34. Kxg3 {[%clk 0:00:01]}  Bf5 {[%clk 0:01:41]} 0-1


[Site "https://www.chess.com"]

[Event "Titled Tuesday Blitz November 15 Early 2022"]
[White "Lopez Del Alamo, Antonio"]
[Black "Sadubayev, Airat"]
[WhiteFideId "2227339"]
[BlackFideId "13713264"]
[WhiteElo "2175"]
[BlackElo "2160"]
[Result "0-1"]
[Round "01"]
[TimeControl "180+1"]
[Date "2022.11.16"]
[WhiteClock "0:00:56"]
[BlackClock "0:01:31"]

1. e4 {[%clk 0:02:57]}  c6 {[%clk 0:02:59]} 2. Nc3 {[%clk 0:02:50]}  d5 {[%clk 0:03:00]} 3. Nf3 {[%clk 0:02:49]}  Bg4 {[%clk 0:03:00]} 4. h3 {[%clk 0:02:48]}  Bxf3 {[%clk 0:03:00]} 5. Qxf3 {[%clk 0:02:48]}  e6 {[%clk 0:03:01]} 6. d3 {[%clk 0:02:46]}  Nd7 {[%clk 0:02:57]} 7. g3 {[%clk 0:02:45]}  Bb4 {[%clk 0:02:56]} 8. Bd2 {[%clk 0:02:43]}  d4 {[%clk 0:02:54]} 9. Ne2 {[%clk 0:02:42]}  Qb6 {[%clk 0:02:54]} 10. O-O-O {[%clk 0:02:21]}  Bxd2+ {[%clk 0:02:51]} 11. Rxd2 {[%clk 0:02:18]}  Ngf6 {[%clk 0:02:51]} 12. Kb1 {[%clk 0:02:13]}  O-O {[%clk 0:02:50]} 13. Qg2 {[%clk 0:02:08]}  c5 {[%clk 0:02:44]} 14. Nc1 {[%clk 0:02:01]}  Rfc8 {[%clk 0:02:42]} 15. f4 {[%clk 0:01:54]}  a5 {[%clk 0:02:40]} 16. g4 {[%clk 0:01:52]}  a4 {[%clk 0:02:37]} 17. a3 {[%clk 0:01:44]}  Ra5 {[%clk 0:02:30]} 18. Ne2 {[%clk 0:01:33]}  c4 {[%clk 0:02:25]} 19. dxc4 {[%clk 0:01:30]}  Rxc4 {[%clk 0:02:21]} 20. Nc1 {[%clk 0:01:29]}  Rc8 {[%clk 0:02:18]} 21. g5 {[%clk 0:01:26]}  Ne8 {[%clk 0:02:17]} 22. Nd3 {[%clk 0:01:19]}  Nd6 {[%clk 0:02:11]} 23. Nb4 {[%clk 0:01:15]}  Nb8 {[%clk 0:01:39]} 24. Bd3 {[%clk 0:01:06]}  Nc6 {[%clk 0:01:38]} 25. Nxc6 {[%clk 0:01:03]}  bxc6 {[%clk 0:01:39]} 26. f5 {[%clk 0:01:00]}  Rb8 {[%clk 0:01:36]} 27. Kc1 {[%clk 0:00:58]}  Qxb2+ {[%clk 0:01:32]} 28. Kd1 {[%clk 0:00:57]}  exf5 {[%clk 0:01:33]} 29. exf5 {[%clk 0:00:56]}  Re8 {[%clk 0:01:31]} 0-1


[Site "https://www.chess.com"]